[Event "Titled Tuesday Blitz November 08 Early 2022"]
[White "Streltsov, Alexey"]
[Black "Wagner, Dennis"]
[WhiteFideId "24104434"]
[BlackFideId "24650684"]
[WhiteElo "2590"]
[BlackElo "2470"]
[Result "0-1"]
[Round "11"]
[TimeControl "180+1"]
[Date "2022.11.09"]
[WhiteClock "0:00:27"]
[BlackClock "0:00:18"]

1. d4 {[%clk 0:03:00]}  d5 {[%clk 0:02:58]} 2. Bf4 {[%clk 0:03:00]}  c5 {[%clk 0:02:58]} 3. e3 {[%clk 0:03:01]}  Nc6 {[%clk 0:02:57]} 4. Nc3 {[%clk 0:03:01]}  cxd4 {[%clk 0:02:55]} 5. exd4 {[%clk 0:03:02]}  a6 {[%clk 0:02:52]} 6. Nf3 {[%clk 0:03:01]}  Bg4 {[%clk 0:02:51]} 7. Be2 {[%clk 0:03:02]}  e6 {[%clk 0:02:51]} 8. a3 {[%clk 0:02:59]}  Bxf3 {[%clk 0:02:48]} 9. Bxf3 {[%clk 0:03:00]}  Bd6 {[%clk 0:02:49]} 10. Qd2 {[%clk 0:02:57]}  Nge7 {[%clk 0:02:48]} 11. O-O {[%clk 0:02:57]}  Rc8 {[%clk 0:02:48]} 12. Ne2 {[%clk 0:02:51]}  O-O {[%clk 0:02:47]} 13. g3 {[%clk 0:02:46]}  Nf5 {[%clk 0:02:36]} 14. Bg4 {[%clk 0:02:37]}  Bxf4 {[%clk 0:02:19]} 15. Qxf4 {[%clk 0:02:37]}  Nd6 {[%clk 0:02:15]} 16. c3 {[%clk 0:02:38]}  Nc4 {[%clk 0:01:56]} 17. Rab1 {[%clk 0:02:32]}  Qd6 {[%clk 0:01:55]} 18. Qxd6 {[%clk 0:02:29]}  Nxd6 {[%clk 0:01:56]} 19. Nf4 {[%clk 0:02:29]}  Rfe8 {[%clk 0:01:52]} 20. Rbe1 {[%clk 0:02:27]}  Kf8 {[%clk 0:01:52]} 21. Nd3 {[%clk 0:02:27]}  g6 {[%clk 0:01:47]} 22. Bh3 {[%clk 0:02:21]}  h5 {[%clk 0:01:47]} 23. Bg2 {[%clk 0:02:22]}  Na5 {[%clk 0:01:44]} 24. Re2 {[%clk 0:02:19]}  Nac4 {[%clk 0:01:43]} 25. Rfe1 {[%clk 0:02:19]}  a5 {[%clk 0:01:35]} 26. Nc5 {[%clk 0:02:16]}  Rc6 {[%clk 0:01:25]} 27. Bxd5 {[%clk 0:02:08]}  exd5 {[%clk 0:01:18]} 28. Nd7+ {[%clk 0:02:08]}  Kg7 {[%clk 0:01:18]} 29. Rxe8 {[%clk 0:02:09]}  Nxe8 {[%clk 0:01:19]} 30. Rxe8 {[%clk 0:02:10]}  Nxb2 {[%clk 0:01:11]} 31. Re7 {[%clk 0:01:56]}  Rc7 {[%clk 0:01:00]} 32. Re2 {[%clk 0:01:28]}  Nc4 {[%clk 0:01:00]} 33. Nc5 {[%clk 0:01:20]}  Nxa3 {[%clk 0:00:58]} 34. Re5 {[%clk 0:01:16]}  Nb5 {[%clk 0:00:35]} 35. Na4 {[%clk 0:00:49]}  Nxc3 {[%clk 0:00:35]} 36. Nxc3 {[%clk 0:00:50]}  Rxc3 {[%clk 0:00:35]} 37. Rxd5 {[%clk 0:00:51]}  a4 {[%clk 0:00:36]} 38. Ra5 {[%clk 0:00:41]}  a3 {[%clk 0:00:35]} 39. Kf1 {[%clk 0:00:34]}  b5 {[%clk 0:00:33]} 40. Ke2 {[%clk 0:00:28]}  b4 {[%clk 0:00:32]} 41. Kd2 {[%clk 0:00:29]}  Kf6 {[%clk 0:00:23]} 42. Ra6+ {[%clk 0:00:26]}  Ke7 {[%clk 0:00:22]} 43. d5 {[%clk 0:00:26]}  Rb3 {[%clk 0:00:19]} 44. Ra7+ {[%clk 0:00:25]}  Kd6 {[%clk 0:00:19]} 45. Rxf7 {[%clk 0:00:26]}  a2 {[%clk 0:00:18]} 46. Kc1 {[%clk 0:00:27]}  a1=Q+ {[%clk 0:00:18]} 0-1


[Site "https://www.chess.com"]

[Event "Titled Tuesday Blitz November 08 Early 2022"]
[White "Tarnowska, Aleksandra"]
[Black "Khaliun, Batnasan"]
[WhiteFideId "1180967"]
[BlackFideId "4906276"]
[WhiteElo "1776"]
[BlackElo "1752"]
[Result "0-1"]
[Round "11"]
[TimeControl "180+1"]
[Date "2022.11.09"]
[WhiteClock "0:00:01"]
[BlackClock "0:00:11"]

1. e4 {[%clk 0:03:00]}  c5 {[%clk 0:02:59]} 2. Nf3 {[%clk 0:03:01]}  d6 {[%clk 0:03:00]} 3. Bb5+ {[%clk 0:03:01]}  Nd7 {[%clk 0:02:59]} 4. O-O {[%clk 0:03:01]}  Nf6 {[%clk 0:02:58]} 5. Re1 {[%clk 0:03:00]}  a6 {[%clk 0:02:57]} 6. Bf1 {[%clk 0:03:00]}  e5 {[%clk 0:02:46]} 7. c3 {[%clk 0:02:59]}  b5 {[%clk 0:02:45]} 8. d4 {[%clk 0:02:59]}  cxd4 {[%clk 0:02:44]} 9. cxd4 {[%clk 0:03:00]}  Bb7 {[%clk 0:02:40]} 10. Bd3 {[%clk 0:02:41]}  Be7 {[%clk 0:02:38]} 11. Nbd2 {[%clk 0:02:40]}  exd4 {[%clk 0:02:38]} 12. Nxd4 {[%clk 0:02:39]}  Ne5 {[%clk 0:02:37]} 13. Bb1 {[%clk 0:02:29]}  g6 {[%clk 0:02:33]} 14. N2f3 {[%clk 0:02:27]}  O-O {[%clk 0:02:31]} 15. Bh6 {[%clk 0:02:24]}  Re8 {[%clk 0:02:31]} 16. Ng5 {[%clk 0:02:19]}  Nfg4 {[%clk 0:02:27]} 17. Nxf7 {[%clk 0:02:04]}  Kxf7 {[%clk 0:02:22]} 18. Qb3+ {[%clk 0:01:56]}  d5 {[%clk 0:02:18]} 19. Bf4 {[%clk 0:01:41]}  Nc4 {[%clk 0:02:03]} 20. Qf3 {[%clk 0:01:28]}  Nf6 {[%clk 0:01:41]} 21. e5 {[%clk 0:01:25]}  Ne4 {[%clk 0:01:37]} 22. Qh3 {[%clk 0:00:51]}  Kg8 {[%clk 0:01:34]} 23. Bh6 {[%clk 0:00:23]}  Ng5 {[%clk 0:01:20]} 24. Bxg5 {[%clk 0:00:14]}  Bxg5 {[%clk 0:01:18]} 25. Ne6 {[%clk 0:00:14]}  Qe7 {[%clk 0:01:16]} 26. Nxg5 {[%clk 0:00:08]}  Qxg5 {[%clk 0:01:15]} 27. e6 {[%clk 0:00:06]}  d4 {[%clk 0:01:04]} 28. Bd3 {[%clk 0:00:05]}  Ne5 {[%clk 0:00:58]} 29. Be4 {[%clk 0:00:04]}  Bxe4 {[%clk 0:00:39]} 30. Rxe4 {[%clk 0:00:05]}  Rac8 {[%clk 0:00:33]} 31. g3 {[%clk 0:00:02]}  Qf5 {[%clk 0:00:16]} 32. Qg2 {[%clk 0:00:02]}  Nf3+ {[%clk 0:00:15]} 33. Kh1 {[%clk 0:00:02]}  Qxe4 {[%clk 0:00:15]} 34. h4 {[%clk 0:00:02]}  Qf5 {[%clk 0:00:15]} 35. g4 {[%clk 0:00:02]}  Qf4 {[%clk 0:00:14]} 36. h5 {[%clk 0:00:02]}  Rxe6 {[%clk 0:00:12]} 37. Rd1 {[%clk 0:00:01]}  Rce8 {[%clk 0:00:11]} 0-1


[Site "https://www.chess.com"]

[Event "Titled Tuesday Blitz November 08 Early 2022"]
[White "Tate, Alan"]
[Black "Fernandez Siles, Luis"]
[WhiteFideId "2401878"]
[BlackFideId "2209420"]
[WhiteElo "2179"]
[BlackElo "2186"]
[Result "0-1"]
[Round "11"]
[TimeControl "180+1"]
[Date "2022.11.09"]
[WhiteClock "0:00:02"]
[BlackClock "0:00:22"]

1. e4 {[%clk 0:02:45]}  c5 {[%clk 0:02:59]} 2. d4 {[%clk 0:02:40]}  cxd4 {[%clk 0:02:58]} 3. Nf3 {[%clk 0:02:41]}  Nc6 {[%clk 0:02:58]} 4. c3 {[%clk 0:02:35]}  Nf6 {[%clk 0:02:54]} 5. e5 {[%clk 0:02:19]}  Nd5 {[%clk 0:02:53]} 6. Bc4 {[%clk 0:02:18]}  Nb6 {[%clk 0:02:52]} 7. Bb3 {[%clk 0:02:18]}  d6 {[%clk 0:02:53]} 8. e6 {[%clk 0:02:07]}  Bxe6 {[%clk 0:02:40]} 9. Bxe6 {[%clk 0:02:05]}  fxe6 {[%clk 0:02:41]} 10. Ng5 {[%clk 0:01:46]}  Qd7 {[%clk 0:02:36]} 11. Qf3 {[%clk 0:01:29]}  Ne5 {[%clk 0:02:31]} 12. Qh3 {[%clk 0:01:27]}  dxc3 {[%clk 0:02:08]} 13. Nxc3 {[%clk 0:00:55]}  O-O-O {[%clk 0:01:26]} 14. f4 {[%clk 0:00:51]}  Nc6 {[%clk 0:00:56]} 15. Nxe6 {[%clk 0:00:49]}  Kb8 {[%clk 0:00:43]} 16. Nxd8 {[%clk 0:00:43]}  Qxd8 {[%clk 0:00:43]} 17. O-O {[%clk 0:00:23]}  e5 {[%clk 0:00:37]} 18. b3 {[%clk 0:00:13]}  Be7 {[%clk 0:00:33]} 19. Bb2 {[%clk 0:00:09]}  exf4 {[%clk 0:00:29]} 20. Rxf4 {[%clk 0:00:07]}  Bf6 {[%clk 0:00:30]} 21. Nd1 {[%clk 0:00:02]}  Bxb2 {[%clk 0:00:27]} 22. Nxb2 {[%clk 0:00:03]}  Nd5 {[%clk 0:00:27]} 23. Rf2 {[%clk 0:00:02]}  Re8 {[%clk 0:00:26]} 24. Raf1 {[%clk 0:00:02]}  Qb6 {[%clk 0:00:25]} 25. Nc4 {[%clk 0:00:02]}  Qd4 {[%clk 0:00:24]} 26. Kh1 {[%clk 0:00:02]}  b5 {[%clk 0:00:22]} 0-1


[Site "https://www.chess.com"]

[Event "Titled Tuesday Blitz November 08 Early 2022"]
[White "Timofeev, Artyom"]
[Black "Fernandez De La Vara, Arnaldo"]
[WhiteFideId "4140419"]
[BlackFideId "3518388"]
[WhiteElo "2586"]
[BlackElo "2387"]
[Result "1-0"]
[Round "11"]
[TimeControl "180+1"]
[Date "2022.11.08"]
[WhiteClock "0:00:31"]
[BlackClock "0:00:03"]

1. e4 {[%clk 0:03:00]}  c5 {[%clk 0:03:00]} 2. Nf3 {[%clk 0:03:00]}  e6 {[%clk 0:03:01]} 3. d4 {[%clk 0:02:59]}  cxd4 {[%clk 0:03:02]} 4. Nxd4 {[%clk 0:03:00]}  a6 {[%clk 0:03:03]} 5. Bd3 {[%clk 0:02:59]}  Nf6 {[%clk 0:03:02]} 6. O-O {[%clk 0:02:57]}  d6 {[%clk 0:03:03]} 7. Qe2 {[%clk 0:02:56]}  g6 {[%clk 0:03:03]} 8. c4 {[%clk 0:02:55]}  Bg7 {[%clk 0:03:04]} 9. Nc3 {[%clk 0:02:55]}  O-O {[%clk 0:03:04]} 10. Kh1 {[%clk 0:02:54]}  Nbd7 {[%clk 0:03:04]} 11. f4 {[%clk 0:02:52]}  Qc7 {[%clk 0:03:04]} 12. Bd2 {[%clk 0:02:49]}  b6 {[%clk 0:03:04]} 13. Rae1 {[%clk 0:02:49]}  Bb7 {[%clk 0:03:05]} 14. Nf3 {[%clk 0:02:47]}  Rad8 {[%clk 0:02:34]} 15. b3 {[%clk 0:02:44]}  Rfe8 {[%clk 0:02:33]} 16. Bb1 {[%clk 0:02:42]}  Nc5 {[%clk 0:02:04]} 17. Ng5 {[%clk 0:02:29]}  Nh5 {[%clk 0:01:33]} 18. Rc1 {[%clk 0:02:22]}  Qe7 {[%clk 0:01:25]} 19. Nf3 {[%clk 0:02:16]}  Nf6 {[%clk 0:01:07]} 20. Rce1 {[%clk 0:02:11]}  Qc7 {[%clk 0:01:07]} 21. Qf2 {[%clk 0:02:04]}  Qb8 {[%clk 0:01:04]} 22. b4 {[%clk 0:01:53]}  Ncd7 {[%clk 0:00:59]} 23. Qh4 {[%clk 0:01:53]}  Nh5 {[%clk 0:00:45]} 24. Ne2 {[%clk 0:01:45]}  Qa8 {[%clk 0:00:36]} 25. Nc3 {[%clk 0:01:30]}  Rc8 {[%clk 0:00:32]} 26. f5 {[%clk 0:01:06]}  Rxc4 {[%clk 0:00:31]} 27. fxe6 {[%clk 0:01:05]}  fxe6 {[%clk 0:00:28]} 28. Nd1 {[%clk 0:01:03]}  d5 {[%clk 0:00:20]} 29. Ne3 {[%clk 0:01:02]}  dxe4 {[%clk 0:00:19]} 30. Ng5 {[%clk 0:01:00]}  Rcc8 {[%clk 0:00:12]} 31. Bxe4 {[%clk 0:00:54]}  Ne5 {[%clk 0:00:08]} 32. Bxb7 {[%clk 0:00:40]}  Qxb7 {[%clk 0:00:09]} 33. Ng4 {[%clk 0:00:40]}  Nd3 {[%clk 0:00:07]} 34. Rd1 {[%clk 0:00:36]}  Rf8 {[%clk 0:00:07]} 35. Nxe6 {[%clk 0:00:34]}  Rxf1+ {[%clk 0:00:07]} 36. Rxf1 {[%clk 0:00:34]}  Qe4 {[%clk 0:00:05]} 37. Nh6+ {[%clk 0:00:31]}  Bxh6 {[%clk 0:00:03]} 38. Qxe4 {[%clk 0:00:31]} 1-0


[Site "https://www.chess.com"]

[Event "Titled Tuesday Blitz November 08 Early 2022"]
[White "Tokhirjonova, Gulrukhbegim"]
[Black "Harsh Suresh"]
[WhiteFideId "14203626"]
[BlackFideId "45018464"]
[WhiteElo "2236"]
[BlackElo "2227"]
[Result "0-1"]
[Round "11"]
[TimeControl "180+1"]
[Date "2022.11.09"]
[WhiteClock "0:00:11"]
[BlackClock "0:00:08"]

1. e4 {[%clk 0:03:00]}  c6 {[%clk 0:02:57]} 2. d4 {[%clk 0:03:00]}  d5 {[%clk 0:02:57]} 3. e5 {[%clk 0:03:01]}  Bf5 {[%clk 0:02:57]} 4. Nf3 {[%clk 0:03:01]}  e6 {[%clk 0:02:57]} 5. Be2 {[%clk 0:03:02]}  c5 {[%clk 0:02:58]} 6. O-O {[%clk 0:02:59]}  Nc6 {[%clk 0:02:53]} 7. c4 {[%clk 0:02:55]}  dxc4 {[%clk 0:02:41]} 8. Be3 {[%clk 0:02:54]}  Nge7 {[%clk 0:02:36]} 9. dxc5 {[%clk 0:02:53]}  Nd5 {[%clk 0:02:35]} 10. Bd4 {[%clk 0:02:52]}  Nxd4 {[%clk 0:02:29]} 11. Qxd4 {[%clk 0:02:48]}  Rc8 {[%clk 0:02:25]} 12. Bxc4 {[%clk 0:02:48]}  Bxc5 {[%clk 0:02:22]} 13. Bb5+ {[%clk 0:02:47]}  Kf8 {[%clk 0:02:23]} 14. Qa4 {[%clk 0:02:39]}  a6 {[%clk 0:02:17]} 15. Be2 {[%clk 0:02:34]}  Qb6 {[%clk 0:02:10]} 16. Nc3 {[%clk 0:02:13]}  Qxb2 {[%clk 0:01:57]} 17. Nxd5 {[%clk 0:02:12]}  Qxe2 {[%clk 0:01:56]} 18. Qd7 {[%clk 0:02:06]}  exd5 {[%clk 0:01:16]} 19. Qxf5 {[%clk 0:02:07]}  Re8 {[%clk 0:01:16]} 20. Ng5 {[%clk 0:02:02]}  f6 {[%clk 0:00:55]} 21. exf6 {[%clk 0:01:25]}  Qe5 {[%clk 0:00:30]} 22. fxg7+ {[%clk 0:01:16]}  Kxg7 {[%clk 0:00:31]} 23. Qd7+ {[%clk 0:01:00]}  Re7 {[%clk 0:00:28]} 24. Qg4 {[%clk 0:00:59]}  h5 {[%clk 0:00:24]} 25. Qh4 {[%clk 0:00:39]}  Qf6 {[%clk 0:00:21]} 26. Rac1 {[%clk 0:00:26]}  Bd6 {[%clk 0:00:19]} 27. f4 {[%clk 0:00:26]}  Kh6 {[%clk 0:00:15]} 28. g4 {[%clk 0:00:21]}  Kg6 {[%clk 0:00:14]} 29. f5+ {[%clk 0:00:20]}  Kg7 {[%clk 0:00:14]} 30. gxh5 {[%clk 0:00:16]}  Kh6 {[%clk 0:00:14]} 31. Nf3 {[%clk 0:00:15]}  Qxh4 {[%clk 0:00:12]} 32. Nxh4 {[%clk 0:00:16]}  Rg8+ {[%clk 0:00:13]} 33. Ng6 {[%clk 0:00:17]}  Re2 {[%clk 0:00:13]} 34. Rce1 {[%clk 0:00:16]}  Rge8 {[%clk 0:00:07]} 35. Rxe2 {[%clk 0:00:15]}  Rxe2 {[%clk 0:00:08]} 36. f6 {[%clk 0:00:15]}  Kxh5 {[%clk 0:00:07]} 37. Nf4+ {[%clk 0:00:13]}  Bxf4 {[%clk 0:00:08]} 38. Rxf4 {[%clk 0:00:14]}  Re8 {[%clk 0:00:08]} 39. f7 {[%clk 0:00:14]}  Rf8 {[%clk 0:00:09]} 40. Kf2 {[%clk 0:00:14]}  Kg5 {[%clk 0:00:08]} 41. Rf3 {[%clk 0:00:14]}  Kg6 {[%clk 0:00:08]} 42. Ke3 {[%clk 0:00:14]}  Rxf7 {[%clk 0:00:05]} 43. Rxf7 {[%clk 0:00:15]}  Kxf7 {[%clk 0:00:06]} 44. Kd4 {[%clk 0:00:16]}  Ke6 {[%clk 0:00:06]} 45. a4 {[%clk 0:00:16]}  b5 {[%clk 0:00:06]} 46. axb5 {[%clk 0:00:17]}  axb5 {[%clk 0:00:06]} 47. h4 {[%clk 0:00:17]}  b4 {[%clk 0:00:06]} 48. h5 {[%clk 0:00:17]}  Kf6 {[%clk 0:00:07]} 49. Kd3 {[%clk 0:00:09]}  Kg5 {[%clk 0:00:07]} 50. Kc2 {[%clk 0:00:10]}  d4 {[%clk 0:00:07]} 51. Kb3 {[%clk 0:00:11]}  d3 {[%clk 0:00:08]} 0-1


[Site "https://www.chess.com"]

[Event "Titled Tuesday Blitz November 08 Early 2022"]
[White "Trifan, Andrei Ioan"]
[Black "Khamdamova, Afruza"]
[WhiteFideId "12967068"]
[BlackFideId "14210444"]
[WhiteElo "2208"]
[BlackElo "2018"]
[Result "1/2-1/2"]
[Round "11"]
[TimeControl "180+1"]
[Date "2022.11.09"]
[WhiteClock "0:00:19"]
[BlackClock "0:00:12"]

1. e4 {[%clk 0:03:00]}  e5 {[%clk 0:02:59]} 2. Nf3 {[%clk 0:03:00]}  Nc6 {[%clk 0:02:59]} 3. Bc4 {[%clk 0:03:00]}  Nf6 {[%clk 0:02:59]} 4. d3 {[%clk 0:02:59]}  Bc5 {[%clk 0:03:00]} 5. a4 {[%clk 0:02:59]}  a5 {[%clk 0:02:54]} 6. h3 {[%clk 0:02:59]}  O-O {[%clk 0:02:53]} 7. Nbd2 {[%clk 0:02:57]}  d6 {[%clk 0:02:50]} 8. c3 {[%clk 0:02:52]}  h6 {[%clk 0:02:45]} 9. g4 {[%clk 0:02:51]}  Be6 {[%clk 0:02:39]} 10. g5 {[%clk 0:02:50]}  hxg5 {[%clk 0:02:32]} 11. Nxg5 {[%clk 0:02:51]}  Bxc4 {[%clk 0:02:32]} 12. Nxc4 {[%clk 0:02:52]}  d5 {[%clk 0:02:31]} 13. exd5 {[%clk 0:02:48]}  Qxd5 {[%clk 0:02:30]} 14. Rg1 {[%clk 0:02:47]}  e4 {[%clk 0:02:27]} 15. Be3 {[%clk 0:02:35]}  exd3 {[%clk 0:01:49]} 16. Bxc5 {[%clk 0:02:31]}  Qxc5 {[%clk 0:01:41]} 17. Qxd3 {[%clk 0:02:21]}  Rad8 {[%clk 0:01:37]} 18. Qe2 {[%clk 0:02:21]}  Rfe8 {[%clk 0:01:25]} 19. Ne3 {[%clk 0:02:20]}  Ne5 {[%clk 0:01:22]} 20. Kf1 {[%clk 0:02:15]}  Ng6 {[%clk 0:01:16]} 21. Qc4 {[%clk 0:02:07]}  Qxc4+ {[%clk 0:01:14]} 22. Nxc4 {[%clk 0:02:08]}  Nf4 {[%clk 0:01:10]} 23. Rg3 {[%clk 0:01:58]}  Ne4 {[%clk 0:01:01]} 24. Nxe4 {[%clk 0:01:46]}  Rxe4 {[%clk 0:01:01]} 25. b3 {[%clk 0:01:47]}  b6 {[%clk 0:00:54]} 26. Re1 {[%clk 0:01:38]}  Rde8 {[%clk 0:00:52]} 27. Rxe4 {[%clk 0:01:36]}  Rxe4 {[%clk 0:00:52]} 28. Rg4 {[%clk 0:01:33]}  f5 {[%clk 0:00:46]} 29. Rg5 {[%clk 0:01:18]}  g6 {[%clk 0:00:42]} 30. h4 {[%clk 0:01:15]}  Kf7 {[%clk 0:00:42]} 31. Ne3 {[%clk 0:01:12]}  Kf6 {[%clk 0:00:39]} 32. Rg3 {[%clk 0:01:08]}  c6 {[%clk 0:00:38]} 33. Nc4 {[%clk 0:00:44]}  b5 {[%clk 0:00:37]} 34. axb5 {[%clk 0:00:43]}  cxb5 {[%clk 0:00:31]} 35. Nxa5 {[%clk 0:00:41]}  Nh5 {[%clk 0:00:26]} 36. Rh3 {[%clk 0:00:41]}  Nf4 {[%clk 0:00:26]} 37. Re3 {[%clk 0:00:41]}  Nd5 {[%clk 0:00:25]} 38. Rxe4 {[%clk 0:00:40]}  fxe4 {[%clk 0:00:25]} 39. c4 {[%clk 0:00:39]}  bxc4 {[%clk 0:00:26]} 40. bxc4 {[%clk 0:00:39]}  Nc7 {[%clk 0:00:23]} 41. Ke2 {[%clk 0:00:38]}  Kf5 {[%clk 0:00:23]} 42. Ke3 {[%clk 0:00:36]}  Ne6 {[%clk 0:00:22]} 43. Nc6 {[%clk 0:00:35]}  Nc5 {[%clk 0:00:20]} 44. f3 {[%clk 0:00:34]}  exf3 {[%clk 0:00:20]} 45. Kxf3 {[%clk 0:00:35]}  Ne6 {[%clk 0:00:20]} 46. Ne7+ {[%clk 0:00:32]}  Kf6 {[%clk 0:00:20]} 47. Nd5+ {[%clk 0:00:32]}  Kf5 {[%clk 0:00:21]} 48. Ne3+ {[%clk 0:00:30]}  Kf6 {[%clk 0:00:21]} 49. Kg4 {[%clk 0:00:30]}  Ke5 {[%clk 0:00:15]} 50. Ng2 {[%clk 0:00:28]}  Ke4 {[%clk 0:00:14]} 51. Nf4 {[%clk 0:00:20]}  Nxf4 {[%clk 0:00:13]} 52. c5 {[%clk 0:00:21]}  Ne6 {[%clk 0:00:12]} 53. c6 {[%clk 0:00:21]}  Kd5 {[%clk 0:00:12]} 54. c7 {[%clk 0:00:21]}  Nxc7 {[%clk 0:00:11]} 55. Kg5 {[%clk 0:00:22]}  Ne6+ {[%clk 0:00:11]} 56. Kxg6 {[%clk 0:00:22]}  Ke5 {[%clk 0:00:12]} 57. Kf7 {[%clk 0:00:20]}  Nf4 {[%clk 0:00:12]} 58. h5 {[%clk 0:00:19]}  Nxh5 {[%clk 0:00:12]} 1/2-1/2


[Site "https://www.chess.com"]

[Event "Titled Tuesday Blitz November 08 Early 2022"]
[White "Vargas, Mauricio"]
[Black "Clawitter, Craig"]
[WhiteFideId "4404572"]
[BlackFideId "2023105"]
[WhiteElo "2025"]
[BlackElo "2174"]
[Result "0-1"]
[Round "11"]
[TimeControl "180+1"]
[Date "2022.11.09"]
[WhiteClock "0:00:01"]
[BlackClock "0:00:09"]

1. e4 {[%clk 0:03:00]}  e6 {[%clk 0:03:00]} 2. Nc3 {[%clk 0:02:59]}  d5 {[%clk 0:03:00]} 3. e5 {[%clk 0:02:57]}  c5 {[%clk 0:03:00]} 4. f4 {[%clk 0:02:56]}  Nc6 {[%clk 0:02:59]} 5. Nf3 {[%clk 0:02:54]}  Nh6 {[%clk 0:02:59]} 6. Bb5 {[%clk 0:02:53]}  Bd7 {[%clk 0:02:56]} 7. Bxc6 {[%clk 0:02:49]}  Bxc6 {[%clk 0:02:57]} 8. O-O {[%clk 0:02:50]}  Nf5 {[%clk 0:02:55]} 9. Qe1 {[%clk 0:02:46]}  Be7 {[%clk 0:02:54]} 10. d3 {[%clk 0:02:46]}  O-O {[%clk 0:02:45]} 11. Ne2 {[%clk 0:02:45]}  Rc8 {[%clk 0:02:30]} 12. c3 {[%clk 0:02:45]}  b5 {[%clk 0:02:29]} 13. g4 {[%clk 0:02:39]}  Nh4 {[%clk 0:02:28]} 14. g5 {[%clk 0:02:31]}  Nf5 {[%clk 0:01:59]} 15. Nh4 {[%clk 0:01:14]}  d4 {[%clk 0:01:46]} 16. Nxf5 {[%clk 0:01:11]}  exf5 {[%clk 0:01:47]} 17. c4 {[%clk 0:01:07]}  bxc4 {[%clk 0:01:42]} 18. dxc4 {[%clk 0:01:07]}  d3 {[%clk 0:01:36]} 19. Ng3 {[%clk 0:01:05]}  Qd4+ {[%clk 0:01:28]} 20. Be3 {[%clk 0:00:50]}  Qxc4 {[%clk 0:01:15]} 21. Nxf5 {[%clk 0:00:47]}  Rfe8 {[%clk 0:00:54]} 22. Rc1 {[%clk 0:00:42]}  Qe4 {[%clk 0:00:41]} 23. Nxe7+ {[%clk 0:00:36]}  Rxe7 {[%clk 0:00:41]} 24. Qg3 {[%clk 0:00:34]}  c4 {[%clk 0:00:22]} 25. Bc5 {[%clk 0:00:31]}  Rd7 {[%clk 0:00:14]} 26. Bb4 {[%clk 0:00:20]}  d2 {[%clk 0:00:12]} 27. Rcd1 {[%clk 0:00:20]}  Rd3 {[%clk 0:00:10]} 28. Rxd2 {[%clk 0:00:01]}  Rxg3+ {[%clk 0:00:09]} 29. hxg3 {[%clk 0:00:01]}  Qh1+ {[%clk 0:00:08]} 30. Kf2 {[%clk 0:00:01]}  Qf3+ {[%clk 0:00:09]} 0-1


[Site "https://www.chess.com"]

[Event "Titled Tuesday Blitz November 08 Early 2022"]
[White "Volkov, Maksim"]
[Black "Jumabayev, Rinat"]
[WhiteFideId "54123070"]
[BlackFideId "13702661"]
[WhiteElo "2257"]
[BlackElo "2561"]
[Result "1-0"]
[Round "11"]
[TimeControl "180+1"]
[Date "2022.11.09"]
[WhiteClock "0:00:14"]
[BlackClock "0:00:05"]

1. d4 {[%clk 0:03:00]}  d6 {[%clk 0:02:58]} 2. c4 {[%clk 0:03:00]}  e5 {[%clk 0:02:58]} 3. Nf3 {[%clk 0:02:59]}  e4 {[%clk 0:02:57]} 4. Nfd2 {[%clk 0:02:58]}  f5 {[%clk 0:02:58]} 5. Nc3 {[%clk 0:02:54]}  c6 {[%clk 0:02:54]} 6. e3 {[%clk 0:02:50]}  d5 {[%clk 0:02:49]} 7. a3 {[%clk 0:02:44]}  Nf6 {[%clk 0:02:42]} 8. b4 {[%clk 0:02:43]}  h5 {[%clk 0:02:38]} 9. Be2 {[%clk 0:02:40]}  h4 {[%clk 0:02:38]} 10. h3 {[%clk 0:02:39]}  g5 {[%clk 0:02:35]} 11. f3 {[%clk 0:02:31]}  Bd6 {[%clk 0:02:30]} 12. O-O {[%clk 0:02:19]}  Qe7 {[%clk 0:02:20]} 13. cxd5 {[%clk 0:02:18]}  cxd5 {[%clk 0:02:20]} 14. fxe4 {[%clk 0:02:18]}  dxe4 {[%clk 0:02:20]} 15. Nc4 {[%clk 0:02:08]}  Bg3 {[%clk 0:02:19]} 16. d5 {[%clk 0:02:03]}  O-O {[%clk 0:02:09]} 17. d6 {[%clk 0:01:48]}  Qf7 {[%clk 0:02:09]} 18. Nb5 {[%clk 0:01:44]}  Be6 {[%clk 0:02:07]} 19. Nc7 {[%clk 0:01:14]}  Bxc4 {[%clk 0:02:07]} 20. Bxc4 {[%clk 0:01:14]}  Qxc4 {[%clk 0:02:08]} 21. Nxa8 {[%clk 0:01:14]}  Nc6 {[%clk 0:00:56]} 22. Nc7 {[%clk 0:01:05]}  f4 {[%clk 0:00:30]} 23. Bb2 {[%clk 0:00:56]}  fxe3 {[%clk 0:00:13]} 24. Rc1 {[%clk 0:00:54]}  Bf2+ {[%clk 0:00:09]} 25. Kh1 {[%clk 0:00:51]}  Qa2 {[%clk 0:00:09]} 26. Rc2 {[%clk 0:00:39]}  Nd7 {[%clk 0:00:07]} 27. Qg4 {[%clk 0:00:33]}  Qf7 {[%clk 0:00:05]} 28. Qxg5+ {[%clk 0:00:32]}  Kh7 {[%clk 0:00:06]} 29. b5 {[%clk 0:00:27]}  Nce5 {[%clk 0:00:04]} 30. Bxe5 {[%clk 0:00:26]}  Qg6 {[%clk 0:00:04]} 31. Qxg6+ {[%clk 0:00:17]}  Kxg6 {[%clk 0:00:05]} 32. Bd4 {[%clk 0:00:15]}  Rf5 {[%clk 0:00:03]} 33. Rcxf2 {[%clk 0:00:15]}  exf2 {[%clk 0:00:04]} 34. Rxf2 {[%clk 0:00:15]}  Rg5 {[%clk 0:00:04]} 35. Re2 {[%clk 0:00:13]}  Kf5 {[%clk 0:00:04]} 36. Bxa7 {[%clk 0:00:13]}  Rg3 {[%clk 0:00:04]} 37. Re3 {[%clk 0:00:12]}  Rg8 {[%clk 0:00:03]} 38. a4 {[%clk 0:00:13]}  Ne5 {[%clk 0:00:03]} 39. Bd4 {[%clk 0:00:12]}  Nc4 {[%clk 0:00:03]} 40. Re1 {[%clk 0:00:13]}  Nxd6 {[%clk 0:00:04]} 41. Nd5 {[%clk 0:00:12]}  Nc4 {[%clk 0:00:04]} 42. Ne7+ {[%clk 0:00:13]}  Kf4 {[%clk 0:00:04]} 43. Nxg8 {[%clk 0:00:13]}  e3 {[%clk 0:00:05]} 44. Nf6 {[%clk 0:00:13]}  b6 {[%clk 0:00:03]} 45. Nd5+ {[%clk 0:00:13]}  Ke4 {[%clk 0:00:04]} 46. Nxe3 {[%clk 0:00:13]}  Kxd4 {[%clk 0:00:05]} 47. Nxc4 {[%clk 0:00:14]}  Kxc4 {[%clk 0:00:05]} 48. Re4+ {[%clk 0:00:14]} 1-0


[Site "https://www.chess.com"]